[Event "Late-Titled-Tuesday-Blitz-March-26-2024"]
[Site "Chess.com"]
[Date "2024.03.26"]
[Round "4"]
[White "AlexPapasimakopoulos"]
[Black "Alex_Banzea"]
[Result "1-0"]
[WhiteElo "2743"]
[BlackElo "2544"]
[TimeControl "180+1"]
[EndTime "14:42:11 PDT"]
[Termination "AlexPapasimakopoulos won by checkmate"]

1. d4 {[%clk 0:03:00.9]} 1... d5 {[%clk 0:02:59.6]} 2. c4 {[%clk 0:03:00.9]}
2... Nc6 {[%clk 0:02:55.6]} 3. cxd5 {[%clk 0:02:59.5]} 3... Qxd5 {[%clk
0:02:55.5]} 4. Nf3 {[%clk 0:03:00.2]} 4... e5 {[%clk 0:02:49.2]} 5. Nc3 {[%clk
0:03:00.5]} 5... Bb4 {[%clk 0:02:49]} 6. Nxe5 {[%clk 0:03:01.2]} 6... Nxe5
{[%clk 0:02:44.7]} 7. dxe5 {[%clk 0:03:02.1]} 7... Bxc3+ {[%clk 0:02:38.1]} 8.
bxc3 {[%clk 0:03:02]} 8... Qxe5 {[%clk 0:02:38.6]} 9. Qd4 {[%clk 0:03:02.4]}
9... Qxd4 {[%clk 0:02:23.2]} 10. cxd4 {[%clk 0:03:03.3]} 10... f5 {[%clk
0:02:16.1]} 11. Bf4 {[%clk 0:03:02.3]} 11... c6 {[%clk 0:02:15.7]} 12. Be5
{[%clk 0:03:00]} 12... Nf6 {[%clk 0:02:15.8]} 13. Bxf6 {[%clk 0:02:53.7]} 13...
gxf6 {[%clk 0:02:15.5]} 14. Rb1 {[%clk 0:02:52.9]} 14... Kd8 {[%clk 0:02:13.5]}
15. e3 {[%clk 0:02:52.9]} 15... Kc7 {[%clk 0:02:08.5]} 16. g3 {[%clk 0:02:52.1]}
16... Be6 {[%clk 0:02:06.5]} 17. a3 {[%clk 0:02:43.5]} 17... Bd5 {[%clk
0:01:58.6]} 18. Rg1 {[%clk 0:02:43.5]} 18... Be4 {[%clk 0:01:57.7]} 19. Rc1
{[%clk 0:02:41.6]} 19... Kd6 {[%clk 0:01:55]} 20. Kd2 {[%clk 0:02:41.4]} 20...
Rac8 {[%clk 0:01:45]} 21. Be2 {[%clk 0:02:33.9]} 21... c5 {[%clk 0:01:44.5]} 22.
dxc5+ {[%clk 0:02:29.7]} 22... Rxc5 {[%clk 0:01:44.6]} 23. Rxc5 {[%clk
0:02:30.5]} 23... Kxc5 {[%clk 0:01:45.2]} 24. Rc1+ {[%clk 0:02:30.9]} 24... Kd6
{[%clk 0:01:45.7]} 25. Bd3 {[%clk 0:02:13.4]} 25... Ke6 {[%clk 0:01:26]} 26. Ke2
{[%clk 0:02:01.9]} 26... Bxd3+ {[%clk 0:01:22.2]} 27. Kxd3 {[%clk 0:02:01.8]}
27... Rd8+ {[%clk 0:01:23.1]} 28. Ke2 {[%clk 0:02:01.7]} 28... Rd6 {[%clk
0:01:02.6]} 29. Rc7 {[%clk 0:02:00.6]} 29... Rd7 {[%clk 0:01:03.2]} 30. Rc4
{[%clk 0:02:00.8]} 30... b5 {[%clk 0:00:57.8]} 31. Rc6+ {[%clk 0:01:58.9]} 31...
Rd6 {[%clk 0:00:46.7]} 32. Rc5 {[%clk 0:01:55.8]} 32... Rd5 {[%clk 0:00:35.6]}
33. Rc8 {[%clk 0:01:55.5]} 33... Rd6 {[%clk 0:00:25]} 34. Kf3 {[%clk 0:01:54.6]}
34... Rb6 {[%clk 0:00:16.6]} 35. Ra8 {[%clk 0:01:49.9]} 35... Ra6 {[%clk
0:00:15.4]} 36. Rb8 {[%clk 0:01:49.2]} 36... Ra5 {[%clk 0:00:04.5]} 37. Kf4
{[%clk 0:01:44.6]} 37... Ra4+ {[%clk 0:00:04.9]} 38. Kf3 {[%clk 0:01:44.4]}
38... a6 {[%clk 0:00:05.6]} 39. Rb6+ {[%clk 0:01:35.4]} 39... Kf7 {[%clk
0:00:05.5]} 40. h3 {[%clk 0:01:28.3]} 40... Kg6 {[%clk 0:00:05.7]} 41. g4 {[%clk
0:01:27.9]} 41... Rxa3 {[%clk 0:00:05]} 42. h4 {[%clk 0:01:21.5]} 42... fxg4+
{[%clk 0:00:05.3]} 43. Kxg4 {[%clk 0:01:22.4]} 43... h5+ {[%clk 0:00:05.5]} 44.
Kf4 {[%clk 0:01:22.3]} 44... Ra4+ {[%clk 0:00:04.1]} 45. e4 {[%clk 0:01:22.8]}
45... Ra2 {[%clk 0:00:03.4]} 46. f3 {[%clk 0:01:22.9]} 46... Ra4 {[%clk
0:00:02.9]} 47. Kg3 {[%clk 0:01:22.4]} 47... Ra3 {[%clk 0:00:02.6]} 48. Kf4
{[%clk 0:01:21.3]} 48... Ra4 {[%clk 0:00:03.2]} 49. Ke3 {[%clk 0:01:13.3]} 49...
Ra3+ {[%clk 0:00:03.4]} 50. Kf2 {[%clk 0:01:13.7]} 50... Kf7 {[%clk 0:00:04.3]}
51. f4 {[%clk 0:01:10.9]} 51... Ra4 {[%clk 0:00:03.2]} 52. Ke3 {[%clk
0:01:11.2]} 52... Ra3+ {[%clk 0:00:03.2]} 53. Kd4 {[%clk 0:01:11.8]} 53... Rh3
{[%clk 0:00:03.3]} 54. Rb7+ {[%clk 0:01:04.2]} 54... Kg6 {[%clk 0:00:03.1]} 55.
f5+ {[%clk 0:01:04.8]} 55... Kh6 {[%clk 0:00:03.1]} 56. Rf7 {[%clk 0:01:04.3]}
56... Rxh4 {[%clk 0:00:03.5]} 57. Rxf6+ {[%clk 0:01:04.4]} 57... Kg7 {[%clk
0:00:03.8]} 58. Rxa6 {[%clk 0:01:04.5]} 58... b4 {[%clk 0:00:03.1]} 59. Rb6
{[%clk 0:01:04.2]} 59... Rh1 {[%clk 0:00:02.5]} 60. Rxb4 {[%clk 0:01:04.4]}
60... h4 {[%clk 0:00:03.4]} 61. Ke5 {[%clk 0:01:02]} 61... h3 {[%clk 0:00:03.7]}
62. Rb3 {[%clk 0:01:00.4]} 62... h2 {[%clk 0:00:03.4]} 63. Rh3 {[%clk 0:01:01]}
63... Kf7 {[%clk 0:00:03.3]} 64. f6 {[%clk 0:00:59.8]} 64... Kg6 {[%clk
0:00:02.6]} 65. Rh4 {[%clk 0:00:53.8]} 65... Kf7 {[%clk 0:00:02.8]} 66. Rh7+
{[%clk 0:00:51.7]} 66... Kf8 {[%clk 0:00:02.6]} 67. Ke6 {[%clk 0:00:50.8]} 67...
Kg8 {[%clk 0:00:02.6]} 68. Rg7+ {[%clk 0:00:50.9]} 68... Kf8 {[%clk 0:00:02.7]}
69. Rh7 {[%clk 0:00:45.8]} 69... Kg8 {[%clk 0:00:02.9]} 70. Rh3 {[%clk
0:00:46.5]} 70... Re1 {[%clk 0:00:02.4]} 71. f7+ {[%clk 0:00:41.6]} 71... Kg7
{[%clk 0:00:02.9]} 72. Rg3+ {[%clk 0:00:26.2]} 72... Kh7 {[%clk 0:00:03.4]} 73.
f8=Q {[%clk 0:00:23.7]} 73... Rxe4+ {[%clk 0:00:03.9]} 74. Kf5 {[%clk
0:00:22.2]} 74... h1=Q {[%clk 0:00:02.5]} 75. Qg7# {[%clk 0:00:22.2]} 1-0

[Event "Late-Titled-Tuesday-Blitz-March-26-2024"]
[Site "Chess.com"]
[Date "2024.03.26"]
[Round "4"]
[White "BallottiLuca"]
[Black "Nicolik"]
[Result "1-0"]
[WhiteElo "2355"]
[BlackElo "2502"]
[TimeControl "180+1"]
[EndTime "14:42:13 PDT"]
[Termination "BallottiLuca won by resignation"]

1. d4 {[%clk 0:03:00.9]} 1... d5 {[%clk 0:02:59.8]} 2. c4 {[%clk 0:03:00.7]}
2... e6 {[%clk 0:03:00]} 3. Nc3 {[%clk 0:03:00.4]} 3... Bb4 {[%clk 0:03:00.1]}
4. Nf3 {[%clk 0:02:56.8]} 4... Nf6 {[%clk 0:02:59.7]} 5. Bg5 {[%clk 0:02:55.8]}
5... h6 {[%clk 0:02:55]} 6. Bxf6 {[%clk 0:02:54.9]} 6... Qxf6 {[%clk 0:02:55.9]}
7. e3 {[%clk 0:02:52.9]} 7... O-O {[%clk 0:02:53.8]} 8. Rc1 {[%clk 0:02:51.2]}
8... c6 {[%clk 0:02:53.8]} 9. Bd3 {[%clk 0:02:49.3]} 9... Nd7 {[%clk 0:02:47.4]}
10. O-O {[%clk 0:02:46.3]} 10... dxc4 {[%clk 0:02:29.6]} 11. Bxc4 {[%clk
0:02:47.2]} 11... Bxc3 {[%clk 0:02:28.8]} 12. Rxc3 {[%clk 0:02:40.3]} 12... e5
{[%clk 0:02:29.1]} 13. Bb3 {[%clk 0:02:37.3]} 13... exd4 {[%clk 0:02:27.3]} 14.
exd4 {[%clk 0:02:37.9]} 14... Nb6 {[%clk 0:02:27.4]} 15. Re1 {[%clk 0:02:32.9]}
15... Bg4 {[%clk 0:02:27.2]} 16. h3 {[%clk 0:02:31.8]} 16... Bh5 {[%clk
0:02:27.3]} 17. Re5 {[%clk 0:02:30.9]} 17... Bg6 {[%clk 0:02:24]} 18. Qe2 {[%clk
0:02:31.1]} 18... Rad8 {[%clk 0:02:21.7]} 19. Re7 {[%clk 0:02:29.9]} 19... Rd7
{[%clk 0:01:54.9]} 20. Rce3 {[%clk 0:02:30]} 20... Rfd8 {[%clk 0:01:49.3]} 21.
Rxd7 {[%clk 0:01:40.5]} 21... Rxd7 {[%clk 0:01:45.6]} 22. Re8+ {[%clk
0:01:41.1]} 22... Kh7 {[%clk 0:01:44.3]} 23. Ne5 {[%clk 0:01:27.2]} 23... Re7
{[%clk 0:01:34.4]} 24. Rxe7 {[%clk 0:01:05.5]} 24... Qxe7 {[%clk 0:01:35.3]} 25.
Qf3 {[%clk 0:01:02.3]} 25... Nd5 {[%clk 0:00:30.1]} 26. Bxd5 {[%clk 0:01:01.6]}
26... cxd5 {[%clk 0:00:31]} 27. Qxd5 {[%clk 0:01:01.9]} 27... Bb1 {[%clk
0:00:26.6]} 28. a3 {[%clk 0:01:01]} 28... f6 {[%clk 0:00:26.4]} 29. Qd7 {[%clk
0:00:48.9]} 29... Qf8 {[%clk 0:00:18.8]} 30. Nc4 {[%clk 0:00:42.7]} 30... Qb8
{[%clk 0:00:17.9]} 31. d5 {[%clk 0:00:38.2]} 31... Qf4 {[%clk 0:00:17.3]} 32.
Ne3 {[%clk 0:00:38.7]} 32... Qd4 {[%clk 0:00:14.5]} 33. Qxb7 {[%clk 0:00:33.6]}
33... Be4 {[%clk 0:00:14.7]} 34. Qb3 {[%clk 0:00:26.9]} 34... f5 {[%clk
0:00:14.6]} 35. Qc3 {[%clk 0:00:24.8]} 35... Qb6 {[%clk 0:00:13.2]} 36. Qd2
{[%clk 0:00:20.8]} 36... Qd6 {[%clk 0:00:12.5]} 37. Nc4 {[%clk 0:00:20.2]} 37...
Qxd5 {[%clk 0:00:12.5]} 38. Qxd5 {[%clk 0:00:18.9]} 38... Bxd5 {[%clk
0:00:13.4]} 39. Nd6 {[%clk 0:00:17.8]} 39... f4 {[%clk 0:00:13.3]} 40. b4 {[%clk
0:00:17.3]} 40... g5 {[%clk 0:00:13.3]} 41. b5 {[%clk 0:00:13.2]} 41... h5
{[%clk 0:00:12.6]} 42. Nc8 {[%clk 0:00:11.3]} 42... Kg6 {[%clk 0:00:09.6]} 43.
Nxa7 {[%clk 0:00:11.2]} 43... g4 {[%clk 0:00:10.3]} 44. hxg4 {[%clk 0:00:10.9]}
44... hxg4 {[%clk 0:00:10.4]} 45. Nc6 {[%clk 0:00:10.3]} 45... Kf6 {[%clk
0:00:10]} 46. a4 {[%clk 0:00:08.8]} 46... Ke6 {[%clk 0:00:10.6]} 47. Nd4+ {[%clk
0:00:09]} 47... Kd6 {[%clk 0:00:10.3]} 48. g3 {[%clk 0:00:07.8]} 48... Kc5
{[%clk 0:00:07.6]} 49. Ne2 {[%clk 0:00:06.1]} 49... f3 {[%clk 0:00:07.1]} 50.
Nf4 {[%clk 0:00:05.8]} 50... Be4 {[%clk 0:00:06.8]} 51. Kf1 {[%clk 0:00:04.5]}
51... Kb4 {[%clk 0:00:07.2]} 52. b6 {[%clk 0:00:04]} 52... Kxa4 {[%clk
0:00:07.7]} 53. Ne6 {[%clk 0:00:02.5]} 53... Ka5 {[%clk 0:00:08]} 54. Ke1 {[%clk
0:00:03.1]} 54... Kxb6 {[%clk 0:00:08.1]} 55. Kd2 {[%clk 0:00:03.8]} 55... Kc6
{[%clk 0:00:08.5]} 56. Ke3 {[%clk 0:00:04.3]} 56... Bc2 {[%clk 0:00:08.4]} 57.
Nd4+ {[%clk 0:00:04.4]} 57... Kd5 {[%clk 0:00:08.5]} 58. Nxc2 {[%clk 0:00:05.3]}
58... Kc5 {[%clk 0:00:09.1]} 59. Ne1 {[%clk 0:00:05.7]} 59... Kc4 {[%clk
0:00:10]} 60. Nd3 {[%clk 0:00:06.5]} 60... Kc3 {[%clk 0:00:10.9]} 61. Ne5 {[%clk
0:00:06.8]} 61... Kc2 {[%clk 0:00:11.5]} 62. Nxg4 {[%clk 0:00:07.7]} 62... Kd1
{[%clk 0:00:12.4]} 63. Kxf3 {[%clk 0:00:08.3]} 63... Ke1 {[%clk 0:00:13.3]} 64.
Ke3 {[%clk 0:00:08.7]} 64... Kf1 {[%clk 0:00:14.2]} 65. f4 {[%clk 0:00:09.3]}
65... Kg1 {[%clk 0:00:15.1]} 66. f5 {[%clk 0:00:10.2]} 66... Kg2 {[%clk
0:00:16]} 67. f6 {[%clk 0:00:10.9]} 67... Kxg3 {[%clk 0:00:16.9]} 68. f7 {[%clk
0:00:11.5]} 68... Kxg4 {[%clk 0:00:17.8]} 69. f8=Q {[%clk 0:00:11.9]} 69... Kg5
{[%clk 0:00:17.9]} 70. Qf7 {[%clk 0:00:11.8]} 70... Kh6 {[%clk 0:00:18.8]} 71.
Qg8 {[%clk 0:00:11.7]} 71... Kh5 {[%clk 0:00:19.3]} 72. Qg7 {[%clk 0:00:12.1]}
72... Kh4 {[%clk 0:00:19.2]} 73. Qg6 {[%clk 0:00:12.4]} 73... Kh3 {[%clk
0:00:19.2]} 74. Qg5 {[%clk 0:00:12.9]} 74... Kh2 {[%clk 0:00:20.1]} 75. Qg4
{[%clk 0:00:13.5]} 75... Kh1 {[%clk 0:00:21]} 76. Kf2 {[%clk 0:00:13.6]} 1-0

[Event "Late-Titled-Tuesday-Blitz-March-26-2024"]
[Site "Chess.com"]
[Date "2024.03.26"]
[Round "4"]
[White "GMG"]
[Black "Konavets"]
[Result "0-1"]
[WhiteElo "2794"]
[BlackElo "3150"]
[TimeControl "180+1"]
[EndTime "14:42:15 PDT"]
[Termination "Konavets won on time"]

1. d4 {[%clk 0:02:58.4]} 1... Nf6 {[%clk 0:02:59.6]} 2. c4 {[%clk 0:02:58.3]}
2... e5 {[%clk 0:02:57.6]} 3. dxe5 {[%clk 0:02:56]} 3... Ng4 {[%clk 0:02:58.1]}
4. e4 {[%clk 0:02:49.5]} 4... Nxe5 {[%clk 0:02:58.1]} 5. f4 {[%clk 0:02:49.9]}
5... Nec6 {[%clk 0:02:58.9]} 6. Be3 {[%clk 0:02:50]} 6... a5 {[%clk 0:02:58.9]}
7. Nf3 {[%clk 0:02:39.2]} 7... Na6 {[%clk 0:02:59.4]} 8. Nc3 {[%clk 0:02:35.9]}
8... Bc5 {[%clk 0:02:59.5]} 9. Qd2 {[%clk 0:02:34.2]} 9... d6 {[%clk 0:03:00.1]}
10. Bd3 {[%clk 0:02:33]} 10... Bg4 {[%clk 0:03:00.5]} 11. O-O {[%clk 0:02:29.4]}
11... O-O {[%clk 0:03:01]} 12. Rae1 {[%clk 0:02:22.8]} 12... Re8 {[%clk
0:03:01.2]} 13. Bb1 {[%clk 0:02:06]} 13... a4 {[%clk 0:02:34]} 14. Nd4 {[%clk
0:02:03.8]} 14... a3 {[%clk 0:02:28.3]} 15. b3 {[%clk 0:01:50.1]} 15... Bb4
{[%clk 0:02:27.8]} 16. f5 {[%clk 0:01:47.7]} 16... f6 {[%clk 0:02:20.7]} 17. Ne6
{[%clk 0:01:43.9]} 17... Rxe6 {[%clk 0:02:18.3]} 18. fxe6 {[%clk 0:01:44.8]}
18... Nc5 {[%clk 0:02:13.7]} 19. Rc1 {[%clk 0:01:42.4]} 19... Bxe6 {[%clk
0:02:09.5]} 20. Qe2 {[%clk 0:01:38.1]} 20... Ne5 {[%clk 0:02:03.1]} 21. h3
{[%clk 0:01:30.8]} 21... c6 {[%clk 0:02:03.2]} 22. Nd1 {[%clk 0:01:25.7]} 22...
Qd7 {[%clk 0:01:56.9]} 23. Nf2 {[%clk 0:01:23.8]} 23... Re8 {[%clk 0:01:56.6]}
24. Rfd1 {[%clk 0:01:21.8]} 24... Qc7 {[%clk 0:01:54.1]} 25. Kh1 {[%clk
0:01:20.2]} 25... Ncd7 {[%clk 0:01:47.3]} 26. Bd2 {[%clk 0:01:18.8]} 26... Bc5
{[%clk 0:01:23.6]} 27. Be3 {[%clk 0:01:18.7]} 27... Bb4 {[%clk 0:01:22.8]} 28.
Bd2 {[%clk 0:01:14.2]} 28... Bc5 {[%clk 0:01:21.1]} 29. Be3 {[%clk 0:01:14.5]}
29... Qb6 {[%clk 0:01:15.4]} 30. Bxc5 {[%clk 0:01:12.2]} 30... dxc5 {[%clk
0:01:16.3]} 31. Rd2 {[%clk 0:01:04.5]} 31... Bf7 {[%clk 0:01:12.6]} 32. Rcd1
{[%clk 0:01:03.1]} 32... Nf8 {[%clk 0:01:13.1]} 33. Nd3 {[%clk 0:01:00.8]} 33...
Neg6 {[%clk 0:01:05.6]} 34. e5 {[%clk 0:00:58.7]} 34... f5 {[%clk 0:00:49.7]}
35. Qf2 {[%clk 0:00:56.3]} 35... Ne6 {[%clk 0:00:50.1]} 36. Qxf5 {[%clk
0:00:54.4]} 36... Nd4 {[%clk 0:00:50.2]} 37. Qf2 {[%clk 0:00:52.9]} 37... Ne6
{[%clk 0:00:47.6]} 38. Rf1 {[%clk 0:00:49.7]} 38... Rf8 {[%clk 0:00:46.7]} 39.
Qe3 {[%clk 0:00:48.1]} 39... Qa5 {[%clk 0:00:46]} 40. Rdf2 {[%clk 0:00:46.5]}
40... b6 {[%clk 0:00:45.8]} 41. Kh2 {[%clk 0:00:44.3]} 41... Qc3 {[%clk
0:00:45.7]} 42. Qc1 {[%clk 0:00:29.8]} 42... Qxc1 {[%clk 0:00:44.1]} 43. Rxc1
{[%clk 0:00:28.9]} 43... Rd8 {[%clk 0:00:41.4]} 44. Rcf1 {[%clk 0:00:26]} 44...
Be8 {[%clk 0:00:41.2]} 45. g3 {[%clk 0:00:26.3]} 45... Nd4 {[%clk 0:00:29.1]}
46. h4 {[%clk 0:00:23.4]} 46... Bd7 {[%clk 0:00:27.7]} 47. h5 {[%clk 0:00:16.6]}
47... Nf8 {[%clk 0:00:26.9]} 48. Nf4 {[%clk 0:00:12.6]} 48... Nfe6 {[%clk
0:00:25.6]} 49. Re1 {[%clk 0:00:10.6]} 49... Ng5 {[%clk 0:00:22.3]} 50. Kg2
{[%clk 0:00:09.8]} 50... Bg4 {[%clk 0:00:22.8]} 51. Re3 {[%clk 0:00:09.2]} 51...
Re8 {[%clk 0:00:20.4]} 52. e6 {[%clk 0:00:09.5]} 52... Ngxe6 {[%clk 0:00:19]}
53. Nxe6 {[%clk 0:00:09.6]} 53... Bxe6 {[%clk 0:00:19.9]} 54. Be4 {[%clk
0:00:09.2]} 54... Rc8 {[%clk 0:00:13.9]} 55. Kf1 {[%clk 0:00:08.8]} 55... Bh3+
{[%clk 0:00:13.5]} 56. Ke1 {[%clk 0:00:08.5]} 56... Bg4 {[%clk 0:00:14.4]} 57.
Kd2 {[%clk 0:00:08.3]} 57... Bxh5 {[%clk 0:00:13.8]} 58. Bd3 {[%clk 0:00:06.8]}
58... Bg6 {[%clk 0:00:12.9]} 59. Bxg6 {[%clk 0:00:06.4]} 59... hxg6 {[%clk
0:00:13.8]} 60. Re7 {[%clk 0:00:06]} 60... Rd8 {[%clk 0:00:14.5]} 61. Kc3 {[%clk
0:00:05.9]} 61... b5 {[%clk 0:00:11.4]} 62. cxb5 {[%clk 0:00:05.5]} 62... cxb5
{[%clk 0:00:12.3]} 63. g4 {[%clk 0:00:06]} 63... Nc6 {[%clk 0:00:09.7]} 64. Rc7
{[%clk 0:00:05.8]} 64... b4+ {[%clk 0:00:09.4]} 65. Kc4 {[%clk 0:00:05.2]} 65...
Ne5+ {[%clk 0:00:10]} 66. Kb5 {[%clk 0:00:04.3]} 66... Rb8+ {[%clk 0:00:10]} 67.
Ka6 {[%clk 0:00:01.9]} 67... c4 {[%clk 0:00:10.5]} 68. bxc4 {[%clk 0:00:01.7]}
68... b3 {[%clk 0:00:10.4]} 69. axb3 {[%clk 0:00:02.1]} 69... Nd3 {[%clk
0:00:10.8]} 70. Rf1 {[%clk 0:00:01.2]} 70... a2 {[%clk 0:00:10.5]} 0-1

[Event "Late-Titled-Tuesday-Blitz-March-26-2024"]
[Site "Chess.com"]
[Date "2024.03.26"]
[Round "4"]
[White "Blackmind96"]
[Black "HajiyevKanan"]
[Result "1-0"]
[WhiteElo "2738"]
[BlackElo "2540"]
[TimeControl "180+1"]
[EndTime "14:42:44 PDT"]
[Termination "Blackmind96 won by resignation"]

1. d4 {[%clk 0:03:00.9]} 1... d5 {[%clk 0:02:59.2]} 2. c4 {[%clk 0:03:00.2]}
2... c6 {[%clk 0:02:59.8]} 3. Nf3 {[%clk 0:02:59.8]} 3... Nf6 {[%clk 0:03:00.5]}
4. Nc3 {[%clk 0:02:52.8]} 4... a6 {[%clk 0:02:58.2]} 5. a4 {[%clk 0:02:52.4]}
5... g6 {[%clk 0:02:54.9]} 6. Bg5 {[%clk 0:02:49.8]} 6... Bg7 {[%clk 0:02:53.8]}
7. e3 {[%clk 0:02:49.7]} 7... O-O {[%clk 0:02:53.8]} 8. h3 {[%clk 0:02:48.1]}
8... Ne4 {[%clk 0:02:54.3]} 9. Bf4 {[%clk 0:02:41.9]} 9... Nd7 {[%clk
0:02:46.9]} 10. cxd5 {[%clk 0:02:14.8]} 10... Nxc3 {[%clk 0:02:45.8]} 11. bxc3
{[%clk 0:02:15.7]} 11... cxd5 {[%clk 0:02:46.3]} 12. Qb3 {[%clk 0:02:16.3]}
12... e6 {[%clk 0:02:36.7]} 13. Be2 {[%clk 0:02:11.9]} 13... Nb8 {[%clk
0:02:19.8]} 14. Bxb8 {[%clk 0:02:00.5]} 14... Rxb8 {[%clk 0:02:19.2]} 15. Bxa6
{[%clk 0:02:01.1]} 15... Qc7 {[%clk 0:02:03.8]} 16. Bb5 {[%clk 0:01:53.9]} 16...
Bd7 {[%clk 0:02:00.2]} 17. Bxd7 {[%clk 0:01:47.9]} 17... Qxd7 {[%clk 0:02:01.1]}
18. c4 {[%clk 0:01:48.2]} 18... dxc4 {[%clk 0:01:54.5]} 19. Qxc4 {[%clk
0:01:49.1]} 19... Rfc8 {[%clk 0:01:54.8]} 20. Qb3 {[%clk 0:01:49.4]} 20... b5
{[%clk 0:01:44.9]} 21. O-O {[%clk 0:01:41.6]} 21... bxa4 {[%clk 0:01:39]} 22.
Qxa4 {[%clk 0:01:41]} 22... Qxa4 {[%clk 0:01:37.6]} 23. Rxa4 {[%clk 0:01:41.9]}
23... Rb7 {[%clk 0:01:38.1]} 24. Rfa1 {[%clk 0:01:39.9]} 24... h6 {[%clk
0:01:38]} 25. Ra8 {[%clk 0:01:37.7]} 25... Rxa8 {[%clk 0:01:37.8]} 26. Rxa8+
{[%clk 0:01:37.6]} 26... Kh7 {[%clk 0:01:38.7]} 27. g4 {[%clk 0:01:32]} 27... g5
{[%clk 0:01:39]} 28. Kg2 {[%clk 0:01:30.3]} 28... Rb2 {[%clk 0:01:34.9]} 29. Ra7
{[%clk 0:01:26.4]} 29... Kg6 {[%clk 0:01:35.4]} 30. Ra6 {[%clk 0:01:25.1]} 30...
Kh7 {[%clk 0:01:25.7]} 31. Ne1 {[%clk 0:01:17.1]} 31... Rd2 {[%clk 0:01:19.4]}
32. Nf3 {[%clk 0:01:14.8]} 32... Rd1 {[%clk 0:01:17.3]} 33. h4 {[%clk
0:01:14.1]} 33... gxh4 {[%clk 0:01:09.6]} 34. Nxh4 {[%clk 0:01:12.3]} 34... Bf6
{[%clk 0:01:06.5]} 35. Nf3 {[%clk 0:01:09.8]} 35... Kg6 {[%clk 0:01:06.4]} 36.
Ra2 {[%clk 0:01:00]} 36... h5 {[%clk 0:01:04.7]} 37. g5 {[%clk 0:00:45.5]} 37...
Bg7 {[%clk 0:00:28.1]} 38. Ra5 {[%clk 0:00:43]} 38... Rb1 {[%clk 0:00:21]} 39.
Nh4+ {[%clk 0:00:42.8]} 39... Kh7 {[%clk 0:00:21.6]} 40. Ra6 {[%clk 0:00:41.8]}
40... Rb5 {[%clk 0:00:15]} 41. f4 {[%clk 0:00:39.2]} 41... Rb3 {[%clk
0:00:12.4]} 42. Kf2 {[%clk 0:00:37.7]} 42... Rb2+ {[%clk 0:00:12.3]} 43. Kf3
{[%clk 0:00:32.6]} 43... Rb3 {[%clk 0:00:13.2]} 44. Ke4 {[%clk 0:00:28.1]} 44...
Rb1 {[%clk 0:00:12.1]} 45. g6+ {[%clk 0:00:27.1]} 45... fxg6 {[%clk 0:00:13]}
46. Rxe6 {[%clk 0:00:27.6]} 46... Rg1 {[%clk 0:00:13]} 47. Nf3 {[%clk
0:00:26.8]} 47... Rd1 {[%clk 0:00:12.9]} 48. f5 {[%clk 0:00:21.2]} 48... gxf5+
{[%clk 0:00:09.6]} 49. Kxf5 {[%clk 0:00:22.1]} 49... h4 {[%clk 0:00:06.8]} 50.
Ng5+ {[%clk 0:00:15.3]} 50... Kg8 {[%clk 0:00:05.9]} 51. Re8+ {[%clk 0:00:14.4]}
51... Bf8 {[%clk 0:00:06.4]} 52. Ne6 {[%clk 0:00:13.6]} 52... Rf1+ {[%clk
0:00:06.2]} 53. Kg4 {[%clk 0:00:12.6]} 53... Rg1+ {[%clk 0:00:02.4]} 54. Kxh4
{[%clk 0:00:12.6]} 54... Kf7 {[%clk 0:00:03.1]} 55. Rxf8+ {[%clk 0:00:12.8]}
55... Kxe6 {[%clk 0:00:03.8]} 56. Rf4 {[%clk 0:00:12.8]} 56... Kd5 {[%clk
0:00:03.8]} 57. Rg4 {[%clk 0:00:12.9]} 57... Re1 {[%clk 0:00:02.8]} 58. Rg5+
{[%clk 0:00:13.3]} 58... Kd6 {[%clk 0:00:02.5]} 59. Re5 {[%clk 0:00:13.7]} 59...
Rg1 {[%clk 0:00:02.7]} 60. Kh3 {[%clk 0:00:14.1]} 60... Rg6 {[%clk 0:00:02.6]}
61. Kh4 {[%clk 0:00:14]} 61... Rg7 {[%clk 0:00:03]} 62. Rg5 {[%clk 0:00:14.3]}
62... Re7 {[%clk 0:00:01.9]} 63. Rg3 {[%clk 0:00:12.1]} 63... Rh7+ {[%clk
0:00:01.7]} 64. Kg4 {[%clk 0:00:12.1]} 64... Kd5 {[%clk 0:00:02.6]} 65. Kf3
{[%clk 0:00:11.9]} 65... Rf7+ {[%clk 0:00:02.6]} 66. Ke2 {[%clk 0:00:12.1]}
66... Ke4 {[%clk 0:00:02.5]} 67. Rg4+ {[%clk 0:00:12.3]} 67... Kd5 {[%clk
0:00:03.2]} 68. Rg5+ {[%clk 0:00:12.4]} 68... Kc4 {[%clk 0:00:03.7]} 69. Rc5+
{[%clk 0:00:11.9]} 69... Kb4 {[%clk 0:00:03.9]} 70. Kd3 {[%clk 0:00:12.8]} 70...
Rh7 {[%clk 0:00:04]} 71. Rc1 {[%clk 0:00:12.3]} 71... Rh2 {[%clk 0:00:04.2]} 72.
d5 {[%clk 0:00:12.5]} 72... Rh5 {[%clk 0:00:03.6]} 73. e4 {[%clk 0:00:12.6]}
73... Rh3+ {[%clk 0:00:04.1]} 74. Kd4 {[%clk 0:00:13]} 74... Rh2 {[%clk
0:00:05]} 75. Rb1+ {[%clk 0:00:11.5]} 75... Ka5 {[%clk 0:00:05.3]} 76. d6 {[%clk
0:00:11.8]} 76... Rd2+ {[%clk 0:00:05.3]} 77. Ke5 {[%clk 0:00:12.2]} 77... Re2
{[%clk 0:00:04.7]} 78. d7 {[%clk 0:00:12.4]} 78... Rd2 {[%clk 0:00:04.7]} 79.
Ke6 {[%clk 0:00:13]} 79... Ka4 {[%clk 0:00:04.4]} 80. e5 {[%clk 0:00:13.4]}
80... Rd1 {[%clk 0:00:05.1]} 81. Rxd1 {[%clk 0:00:13.2]} 1-0